[Event "Titled Tuesday Blitz May 2 Late 2023"]
[White "Janik, Igor"]
[Black "Kourkoulos-Arditis, Stamatis"]
[WhiteFideId "1159259"]
[BlackFideId "4221990"]
[WhiteElo "2484"]
[BlackElo "2400"]
[Result "0-1"]
[Round "03"]
[TimeControl "180+2"]
[Date "2023.05.02"]
[WhiteClock "0:00:08"]
[BlackClock "0:00:06"]

1. c4 {[%clk 0:03:00]}  Nf6 {[%clk 0:02:56]} 2. Nf3 {[%clk 0:03:01]}  e6 {[%clk 0:02:54]} 3. g3 {[%clk 0:03:01]}  b6 {[%clk 0:02:54]} 4. Bg2 {[%clk 0:03:01]}  Bb7 {[%clk 0:02:55]} 5. O-O {[%clk 0:03:01]}  c5 {[%clk 0:02:55]} 6. b3 {[%clk 0:03:00]}  Be7 {[%clk 0:02:53]} 7. Bb2 {[%clk 0:03:00]}  O-O {[%clk 0:02:54]} 8. d4 {[%clk 0:03:01]}  cxd4 {[%clk 0:02:54]} 9. Qxd4 {[%clk 0:03:00]}  Nc6 {[%clk 0:02:53]} 10. Qd2 {[%clk 0:03:01]}  d6 {[%clk 0:02:52]} 11. Nc3 {[%clk 0:03:00]}  a6 {[%clk 0:02:52]} 12. Rfd1 {[%clk 0:03:00]}  Qb8 {[%clk 0:02:48]} 13. Rac1 {[%clk 0:02:57]}  Rd8 {[%clk 0:02:47]} 14. Qc2 {[%clk 0:02:55]}  h6 {[%clk 0:02:45]} 15. Rd2 {[%clk 0:02:40]}  b5 {[%clk 0:02:43]} 16. Rcd1 {[%clk 0:02:23]}  bxc4 {[%clk 0:02:32]} 17. bxc4 {[%clk 0:02:23]}  Qc7 {[%clk 0:02:21]} 18. Nd5 {[%clk 0:02:16]}  exd5 {[%clk 0:01:41]} 19. cxd5 {[%clk 0:02:17]}  Rac8 {[%clk 0:01:39]} 20. dxc6 {[%clk 0:02:14]}  Bxc6 {[%clk 0:01:39]} 21. Nd4 {[%clk 0:02:04]}  Bxg2 {[%clk 0:01:34]} 22. Qxc7 {[%clk 0:02:04]}  Rxc7 {[%clk 0:01:33]} 23. Kxg2 {[%clk 0:02:05]}  Ne4 {[%clk 0:01:28]} 24. Rc2 {[%clk 0:01:59]}  Rxc2 {[%clk 0:01:21]} 25. Nxc2 {[%clk 0:01:58]}  Rc8 {[%clk 0:01:11]} 26. Ne3 {[%clk 0:01:56]}  Rb8 {[%clk 0:00:54]} 27. Bd4 {[%clk 0:01:51]}  Rb5 {[%clk 0:00:50]} 28. f3 {[%clk 0:01:43]}  Ng5 {[%clk 0:00:50]} 29. Bc3 {[%clk 0:01:38]}  Ne6 {[%clk 0:00:49]} 30. Nd5 {[%clk 0:01:31]}  Bf8 {[%clk 0:00:47]} 31. e4 {[%clk 0:01:30]}  Rc5 {[%clk 0:00:43]} 32. Rd2 {[%clk 0:01:26]}  Rc4 {[%clk 0:00:42]} 33. Kf2 {[%clk 0:01:14]}  f6 {[%clk 0:00:41]} 34. Ke3 {[%clk 0:01:12]}  Kf7 {[%clk 0:00:41]} 35. Kd3 {[%clk 0:01:09]}  Ra4 {[%clk 0:00:41]} 36. Rb2 {[%clk 0:01:04]}  Nc5+ {[%clk 0:00:40]} 37. Ke3 {[%clk 0:01:01]}  h5 {[%clk 0:00:38]} 38. Bd4 {[%clk 0:00:59]}  Ra3+ {[%clk 0:00:37]} 39. Ke2 {[%clk 0:00:58]}  Ke6 {[%clk 0:00:30]} 40. Bxc5 {[%clk 0:00:56]}  dxc5 {[%clk 0:00:31]} 41. Ne3 {[%clk 0:00:48]}  Bd6 {[%clk 0:00:21]} 42. Nc4 {[%clk 0:00:46]}  Rc3 {[%clk 0:00:19]} 43. Nd2 {[%clk 0:00:41]}  Kd7 {[%clk 0:00:16]} 44. Rb3 {[%clk 0:00:39]}  Rc2 {[%clk 0:00:16]} 45. Kd3 {[%clk 0:00:18]}  Rxa2 {[%clk 0:00:15]} 46. f4 {[%clk 0:00:18]}  Kc6 {[%clk 0:00:14]} 47. Nc4 {[%clk 0:00:18]}  Bc7 {[%clk 0:00:14]} 48. Nd2 {[%clk 0:00:12]}  Ba5 {[%clk 0:00:14]} 49. Nc4 {[%clk 0:00:12]}  Bb4 {[%clk 0:00:15]} 50. Ke3 {[%clk 0:00:13]}  Rxh2 {[%clk 0:00:13]} 51. Rd3 {[%clk 0:00:13]}  a5 {[%clk 0:00:09]} 52. Rd8 {[%clk 0:00:12]}  Kb5 {[%clk 0:00:08]} 53. Nd6+ {[%clk 0:00:12]}  Ka4 {[%clk 0:00:08]} 54. e5 {[%clk 0:00:12]}  fxe5 {[%clk 0:00:08]} 55. fxe5 {[%clk 0:00:13]}  Rh1 {[%clk 0:00:09]} 56. Kf4 {[%clk 0:00:10]}  Rf1+ {[%clk 0:00:09]} 57. Kg5 {[%clk 0:00:10]}  Re1 {[%clk 0:00:10]} 58. Kf5 {[%clk 0:00:10]}  Kb3 {[%clk 0:00:10]} 59. e6 {[%clk 0:00:10]}  c4 {[%clk 0:00:09]} 60. Ne4 {[%clk 0:00:09]}  c3 {[%clk 0:00:07]} 61. Rd3 {[%clk 0:00:09]}  Kc4 {[%clk 0:00:06]} 62. Rd7 {[%clk 0:00:08]}  c2 {[%clk 0:00:06]} 63. Rc7+ {[%clk 0:00:08]}  Kb3 {[%clk 0:00:06]} 64. e7 {[%clk 0:00:08]}  Bxe7 {[%clk 0:00:06]} 0-1


[Site "https://www.chess.com"]

[Event "Titled Tuesday Blitz May 2 Late 2023"]
[White "Ozates, Tuna"]
[Black "Maksimovic, Bojan"]
[WhiteFideId "6354521"]
[BlackFideId "14408120"]
[WhiteElo "2151"]
[BlackElo "2468"]
[Result "1/2-1/2"]
[Round "03"]
[TimeControl "180+2"]
[Date "2023.05.02"]
[WhiteClock "0:00:06"]
[BlackClock "0:00:04"]

1. c4 {[%clk 0:03:00]}  g6 {[%clk 0:03:00]} 2. Nc3 {[%clk 0:03:00]}  Bg7 {[%clk 0:03:01]} 3. g3 {[%clk 0:03:00]}  d6 {[%clk 0:02:59]} 4. Bg2 {[%clk 0:03:00]}  e5 {[%clk 0:02:59]} 5. d3 {[%clk 0:03:00]}  Nf6 {[%clk 0:03:00]} 6. e4 {[%clk 0:03:00]}  O-O {[%clk 0:02:59]} 7. h3 {[%clk 0:02:59]}  Nc6 {[%clk 0:02:56]} 8. Be3 {[%clk 0:02:59]}  a5 {[%clk 0:02:47]} 9. Qd2 {[%clk 0:03:00]}  Nd7 {[%clk 0:02:47]} 10. Nge2 {[%clk 0:03:00]}  Nc5 {[%clk 0:02:47]} 11. O-O {[%clk 0:02:59]}  Ne6 {[%clk 0:02:43]} 12. f4 {[%clk 0:02:59]}  exf4 {[%clk 0:02:44]} 13. gxf4 {[%clk 0:02:59]}  Ned4 {[%clk 0:02:43]} 14. Nxd4 {[%clk 0:02:56]}  Nxd4 {[%clk 0:02:43]} 15. Ne2 {[%clk 0:02:55]}  Nxe2+ {[%clk 0:02:38]} 16. Qxe2 {[%clk 0:02:54]}  f5 {[%clk 0:02:38]} 17. Rad1 {[%clk 0:02:41]}  fxe4 {[%clk 0:02:38]} 18. dxe4 {[%clk 0:02:41]}  Qe7 {[%clk 0:02:39]} 19. b3 {[%clk 0:02:10]}  Bd7 {[%clk 0:02:33]} 20. c5 {[%clk 0:02:07]}  dxc5 {[%clk 0:02:24]} 21. Qc4+ {[%clk 0:02:06]}  Be6 {[%clk 0:02:21]} 22. Qxc5 {[%clk 0:02:01]}  Qxc5 {[%clk 0:02:17]} 23. Bxc5 {[%clk 0:02:02]}  Rfd8 {[%clk 0:02:01]} 24. e5 {[%clk 0:02:01]}  c6 {[%clk 0:01:25]} 25. Bb6 {[%clk 0:01:53]}  Rxd1 {[%clk 0:01:24]} 26. Rxd1 {[%clk 0:01:54]}  a4 {[%clk 0:01:25]} 27. bxa4 {[%clk 0:01:49]}  Rxa4 {[%clk 0:01:24]} 28. Rd8+ {[%clk 0:01:34]}  Kf7 {[%clk 0:01:24]} 29. Rb8 {[%clk 0:01:35]}  Bf8 {[%clk 0:00:45]} 30. Rxb7+ {[%clk 0:01:28]}  Kg8 {[%clk 0:00:45]} 31. Bxc6 {[%clk 0:01:10]}  Rxa2 {[%clk 0:00:41]} 32. Rb8 {[%clk 0:01:07]}  Rb2 {[%clk 0:00:40]} 33. Bc7 {[%clk 0:00:41]}  Rxb8 {[%clk 0:00:21]} 34. Bxb8 {[%clk 0:00:41]}  Bh6 {[%clk 0:00:22]} 35. Kg2 {[%clk 0:00:23]}  Bxf4 {[%clk 0:00:22]} 36. h4 {[%clk 0:00:23]}  Kg7 {[%clk 0:00:21]} 37. Kf3 {[%clk 0:00:23]}  Bc1 {[%clk 0:00:22]} 38. Bd6 {[%clk 0:00:21]}  Kh6 {[%clk 0:00:21]} 39. Be7 {[%clk 0:00:21]}  Bd2 {[%clk 0:00:13]} 40. Kg3 {[%clk 0:00:21]}  Be1+ {[%clk 0:00:13]} 41. Kf3 {[%clk 0:00:17]}  Kh5 {[%clk 0:00:13]} 42. Kg2 {[%clk 0:00:08]}  Kh6 {[%clk 0:00:09]} 43. Bf3 {[%clk 0:00:08]}  Kg7 {[%clk 0:00:08]} 44. Bf6+ {[%clk 0:00:08]}  Kf7 {[%clk 0:00:08]} 45. h5 {[%clk 0:00:09]}  Bd2 {[%clk 0:00:05]} 46. hxg6+ {[%clk 0:00:09]}  hxg6 {[%clk 0:00:05]} 47. Be4 {[%clk 0:00:10]}  g5 {[%clk 0:00:05]} 48. Kf3 {[%clk 0:00:09]}  Bc1 {[%clk 0:00:05]} 49. Kg3 {[%clk 0:00:10]}  Bf4+ {[%clk 0:00:04]} 50. Kf3 {[%clk 0:00:10]}  Kf8 {[%clk 0:00:05]} 51. Bg6 {[%clk 0:00:10]}  Kg8 {[%clk 0:00:05]} 52. Ke4 {[%clk 0:00:10]}  Bc1 {[%clk 0:00:05]} 53. Bf5 {[%clk 0:00:10]}  Kf7 {[%clk 0:00:03]} 54. Bxe6+ {[%clk 0:00:04]}  Kxe6 {[%clk 0:00:04]} 55. Kf3 {[%clk 0:00:05]}  Bf4 {[%clk 0:00:03]} 56. Kg4 {[%clk 0:00:05]}  Bxe5 {[%clk 0:00:03]} 57. Bxe5 {[%clk 0:00:05]}  Kxe5 {[%clk 0:00:04]} 58. Kxg5 {[%clk 0:00:06]} 1/2-1/2


[Site "https://www.chess.com"]

[Event "Titled Tuesday Blitz May 2 Late 2023"]
[White "Flynn, Jacob"]
[Black "Makridis, Dimitrios"]
[WhiteFideId "2509393"]
[BlackFideId "25864475"]
[WhiteElo "2053"]
[BlackElo "2277"]
[Result "0-1"]
[Round "03"]
[TimeControl "180+2"]
[Date "2023.05.02"]
[WhiteClock "0:02:12"]
[BlackClock "0:02:35"]

1. d4 {[%clk 0:03:00]}  Nf6 {[%clk 0:02:49]} 2. c4 {[%clk 0:03:01]}  c5 {[%clk 0:02:45]} 3. Nf3 {[%clk 0:03:01]}  cxd4 {[%clk 0:02:43]} 4. Nxd4 {[%clk 0:03:02]}  e6 {[%clk 0:02:41]} 5. Nc3 {[%clk 0:02:59]}  d5 {[%clk 0:02:40]} 6. cxd5 {[%clk 0:02:57]}  Nxd5 {[%clk 0:02:41]} 7. g3 {[%clk 0:02:54]}  Nxc3 {[%clk 0:02:40]} 8. bxc3 {[%clk 0:02:54]}  Qd5 {[%clk 0:02:40]} 9. Nf3 {[%clk 0:02:49]}  Qxd1+ {[%clk 0:02:38]} 10. Kxd1 {[%clk 0:02:50]}  Bd7 {[%clk 0:02:38]} 11. Ne5 {[%clk 0:02:42]}  Ba4+ {[%clk 0:02:35]} 12. Ke1 {[%clk 0:02:41]}  Nc6 {[%clk 0:02:35]} 13. Nxc6 {[%clk 0:02:26]}  Bxc6 {[%clk 0:02:36]} 14. f3 {[%clk 0:02:27]}  O-O-O {[%clk 0:02:35]} 15. e4 {[%clk 0:02:11]}  f5 {[%clk 0:02:35]} 16. exf5 {[%clk 0:02:12]}  Bxf3 {[%clk 0:02:34]} 17. Rg1 {[%clk 0:02:12]}  Bc5 {[%clk 0:02:35]} 0-1


[Site "https://www.chess.com"]

[Event "Titled Tuesday Blitz May 2 Late 2023"]
[White "Djokic, Mihailo"]
[Black "Batsiashvili, Nino"]
[WhiteFideId "976440"]
[BlackFideId "13602993"]
[WhiteElo "2294"]
[BlackElo "2231"]
[Result "1-0"]
[Round "03"]
[TimeControl "180+2"]
[Date "2023.05.02"]
[WhiteClock "0:02:18"]
[BlackClock "0:01:00"]

1. e4 {[%clk 0:03:00]}  c6 {[%clk 0:02:59]} 2. d4 {[%clk 0:03:00]}  d5 {[%clk 0:03:00]} 3. e5 {[%clk 0:03:00]}  c5 {[%clk 0:02:59]} 4. dxc5 {[%clk 0:03:01]}  e6 {[%clk 0:02:59]} 5. Nf3 {[%clk 0:03:01]}  Bxc5 {[%clk 0:02:58]} 6. Bd3 {[%clk 0:03:02]}  Ne7 {[%clk 0:02:57]} 7. O-O {[%clk 0:03:02]}  Nbc6 {[%clk 0:02:51]} 8. Nbd2 {[%clk 0:03:02]}  Nd4 {[%clk 0:02:47]} 9. Nxd4 {[%clk 0:03:01]}  Bxd4 {[%clk 0:02:48]} 10. Nf3 {[%clk 0:03:01]}  Bb6 {[%clk 0:02:43]} 11. c4 {[%clk 0:03:01]}  Bd7 {[%clk 0:02:39]} 12. cxd5 {[%clk 0:03:00]}  Nxd5 {[%clk 0:02:36]} 13. Bg5 {[%clk 0:03:00]}  Qc7 {[%clk 0:02:31]} 14. Rc1 {[%clk 0:03:00]}  Bc6 {[%clk 0:02:30]} 15. Bb5 {[%clk 0:02:57]}  h6 {[%clk 0:02:30]} 16. Bh4 {[%clk 0:02:53]}  O-O {[%clk 0:02:23]} 17. Bxc6 {[%clk 0:02:53]}  bxc6 {[%clk 0:02:24]} 18. Qa4 {[%clk 0:02:53]}  Rfc8 {[%clk 0:02:21]} 19. Rc2 {[%clk 0:02:49]}  c5 {[%clk 0:02:08]} 20. Rfc1 {[%clk 0:02:42]}  Qc6 {[%clk 0:02:04]} 21. Qc4 {[%clk 0:02:36]}  a6 {[%clk 0:01:52]} 22. Bg3 {[%clk 0:02:33]}  Qb5 {[%clk 0:01:51]} 23. b3 {[%clk 0:02:33]}  Qxc4 {[%clk 0:01:43]} 24. Rxc4 {[%clk 0:02:32]}  a5 {[%clk 0:01:41]} 25. Nd2 {[%clk 0:02:27]}  Nb4 {[%clk 0:01:29]} 26. a3 {[%clk 0:02:27]}  Nd3 {[%clk 0:01:18]} 27. R1c2 {[%clk 0:02:27]}  Rd8 {[%clk 0:01:13]} 28. Kf1 {[%clk 0:02:26]}  Rd5 {[%clk 0:01:10]} 29. R4c3 {[%clk 0:02:23]}  Nxe5 {[%clk 0:01:08]} 30. Bxe5 {[%clk 0:02:22]}  Rxe5 {[%clk 0:01:09]} 31. Nc4 {[%clk 0:02:23]}  Bc7 {[%clk 0:01:03]} 32. Nxe5 {[%clk 0:02:22]}  Bxe5 {[%clk 0:01:03]} 33. Rxc5 {[%clk 0:02:23]}  Bd4 {[%clk 0:01:03]} 34. Rc8+ {[%clk 0:02:23]}  Rxc8 {[%clk 0:01:03]} 35. Rxc8+ {[%clk 0:02:24]}  Kh7 {[%clk 0:01:03]} 36. Rc4 {[%clk 0:02:25]}  e5 {[%clk 0:01:01]} 37. Rxd4 {[%clk 0:02:18]}  exd4 {[%clk 0:01:00]} 38. b4 {[%clk 0:02:18]} 1-0


[Site "https://www.chess.com"]

[Event "Titled Tuesday Blitz May 2 Late 2023"]
[White "Kukelko, Alexey"]
[Black "Ter-Sahakyan, Samvel"]
[WhiteFideId "14153084"]
[BlackFideId "13302531"]
[WhiteElo "2264"]
[BlackElo "2566"]
[Result "0-1"]
[Round "03"]
[TimeControl "180+2"]
[Date "2023.05.02"]
[WhiteClock "0:00:29"]
[BlackClock "0:00:55"]

1. e4 {[%clk 0:03:00]}  c5 {[%clk 0:03:00]} 2. Nf3 {[%clk 0:02:59]}  e6 {[%clk 0:03:00]} 3. d4 {[%clk 0:02:48]}  cxd4 {[%clk 0:03:01]} 4. Nxd4 {[%clk 0:02:48]}  Nf6 {[%clk 0:03:02]} 5. Nc3 {[%clk 0:02:48]}  Nc6 {[%clk 0:03:02]} 6. Nxc6 {[%clk 0:02:48]}  bxc6 {[%clk 0:03:02]} 7. e5 {[%clk 0:02:49]}  Nd5 {[%clk 0:03:02]} 8. Ne4 {[%clk 0:02:50]}  Qc7 {[%clk 0:03:01]} 9. f4 {[%clk 0:02:50]}  Rb8 {[%clk 0:03:01]} 10. Bd3 {[%clk 0:02:28]}  c5 {[%clk 0:02:46]} 11. Qe2 {[%clk 0:02:24]}  Nb4 {[%clk 0:02:41]} 12. Bc4 {[%clk 0:02:23]}  Bb7 {[%clk 0:02:34]} 13. O-O {[%clk 0:02:21]}  Be7 {[%clk 0:02:32]} 14. Rf3 {[%clk 0:02:04]}  Bd5 {[%clk 0:02:22]} 15. c3 {[%clk 0:02:00]}  Bxc4 {[%clk 0:02:17]} 16. Qxc4 {[%clk 0:01:59]}  Nc6 {[%clk 0:02:18]} 17. Rf2 {[%clk 0:01:22]}  Na5 {[%clk 0:02:06]} 18. Qe2 {[%clk 0:01:19]}  O-O {[%clk 0:01:50]} 19. Be3 {[%clk 0:01:18]}  Qc6 {[%clk 0:01:46]} 20. Qf3 {[%clk 0:01:16]}  Nc4 {[%clk 0:01:43]} 21. Bc1 {[%clk 0:01:16]}  Rbc8 {[%clk 0:01:36]} 22. Qd3 {[%clk 0:01:10]}  d5 {[%clk 0:01:32]} 23. exd6 {[%clk 0:01:01]}  Nxd6 {[%clk 0:01:32]} 24. Nxd6 {[%clk 0:01:00]}  Bxd6 {[%clk 0:01:32]} 25. Be3 {[%clk 0:00:57]}  Rfd8 {[%clk 0:01:32]} 26. Rd1 {[%clk 0:00:55]}  Be7 {[%clk 0:01:25]} 27. Qc2 {[%clk 0:00:54]}  Rxd1+ {[%clk 0:01:24]} 28. Qxd1 {[%clk 0:00:55]}  h6 {[%clk 0:01:21]} 29. Rd2 {[%clk 0:00:54]}  Qe4 {[%clk 0:01:19]} 30. Bf2 {[%clk 0:00:39]}  Qxf4 {[%clk 0:01:15]} 31. Rd7 {[%clk 0:00:39]}  Rc7 {[%clk 0:00:55]} 32. Rxe7 {[%clk 0:00:28]}  Rxe7 {[%clk 0:00:54]} 33. Qd8+ {[%clk 0:00:28]}  Kh7 {[%clk 0:00:55]} 34. Qxe7 {[%clk 0:00:29]}  Qc1+ {[%clk 0:00:55]} 0-1


[Site "https://www.chess.com"]

[Event "Titled Tuesday Blitz May 2 Late 2023"]
[White "Timmermans, Mark"]
[Black "Manukian, Artak"]
[WhiteFideId "1026399"]
[BlackFideId "13301373"]
[WhiteElo "2460"]
[BlackElo "2130"]
[Result "1-0"]
[Round "03"]
[TimeControl "180+2"]
[Date "2023.05.02"]
[WhiteClock "0:00:36"]
[BlackClock "0:00:04"]

1. e4 {[%clk 0:03:00]}  c6 {[%clk 0:03:00]} 2. Nf3 {[%clk 0:02:58]}  d5 {[%clk 0:03:00]} 3. exd5 {[%clk 0:02:59]}  cxd5 {[%clk 0:03:01]} 4. Ne5 {[%clk 0:02:59]}  Nc6 {[%clk 0:03:01]} 5. Bb5 {[%clk 0:02:59]}  Bd7 {[%clk 0:03:01]} 6. Nxd7 {[%clk 0:02:59]}  Qxd7 {[%clk 0:03:02]} 7. d4 {[%clk 0:02:59]}  e6 {[%clk 0:03:02]} 8. O-O {[%clk 0:02:59]}  Bd6 {[%clk 0:03:01]} 9. Qg4 {[%clk 0:02:54]}  Kf8 {[%clk 0:03:01]} 10. c3 {[%clk 0:02:47]}  Nf6 {[%clk 0:03:00]} 11. Qh4 {[%clk 0:02:48]}  a6 {[%clk 0:02:53]} 12. Ba4 {[%clk 0:02:47]}  Qe7 {[%clk 0:02:43]} 13. Bg5 {[%clk 0:02:45]}  h6 {[%clk 0:02:43]} 14. Nd2 {[%clk 0:02:45]}  Kg8 {[%clk 0:02:40]} 15. Bxf6 {[%clk 0:02:38]}  Qxf6 {[%clk 0:02:41]} 16. Qxf6 {[%clk 0:02:38]}  gxf6 {[%clk 0:02:41]} 17. Bxc6 {[%clk 0:02:38]}  bxc6 {[%clk 0:02:42]} 18. b4 {[%clk 0:02:39]}  a5 {[%clk 0:02:41]} 19. a3 {[%clk 0:02:39]}  Kg7 {[%clk 0:02:35]} 20. Nb3 {[%clk 0:02:39]}  a4 {[%clk 0:02:32]} 21. Nd2 {[%clk 0:02:38]}  f5 {[%clk 0:02:29]} 22. f4 {[%clk 0:02:37]}  h5 {[%clk 0:02:28]} 23. Kf2 {[%clk 0:02:36]}  h4 {[%clk 0:02:26]} 24. Ke3 {[%clk 0:02:36]}  Kf6 {[%clk 0:02:24]} 25. Rg1 {[%clk 0:02:27]}  Rag8 {[%clk 0:02:21]} 26. Raf1 {[%clk 0:02:26]}  Rg4 {[%clk 0:02:20]} 27. c4 {[%clk 0:02:25]}  Rhg8 {[%clk 0:02:07]} 28. Rf2 {[%clk 0:02:25]}  Ke7 {[%clk 0:02:00]} 29. c5 {[%clk 0:02:21]}  Bc7 {[%clk 0:01:53]} 30. Nb1 {[%clk 0:02:21]}  f6 {[%clk 0:01:49]} 31. Nc3 {[%clk 0:02:20]}  e5 {[%clk 0:01:46]} 32. Ne2 {[%clk 0:02:10]}  exf4+ {[%clk 0:01:35]} 33. Kf3 {[%clk 0:01:45]}  h3 {[%clk 0:01:31]} 34. g3 {[%clk 0:01:43]}  fxg3 {[%clk 0:01:19]} 35. hxg3 {[%clk 0:01:44]}  f4 {[%clk 0:01:13]} 36. Rh2 {[%clk 0:01:44]}  fxg3 {[%clk 0:01:08]} 37. Rxh3 {[%clk 0:01:45]}  g2 {[%clk 0:00:57]} 38. Rh7+ {[%clk 0:01:44]}  Kd8 {[%clk 0:00:55]} 39. Kf2 {[%clk 0:01:24]}  Re4 {[%clk 0:00:51]} 40. Rh3 {[%clk 0:01:21]}  Rge8 {[%clk 0:00:45]} 41. Nc3 {[%clk 0:01:19]}  Rxd4 {[%clk 0:00:45]} 42. Rxg2 {[%clk 0:01:18]}  Rd2+ {[%clk 0:00:40]} 43. Kf1 {[%clk 0:01:16]}  Rxg2 {[%clk 0:00:35]} 44. Kxg2 {[%clk 0:01:17]}  d4 {[%clk 0:00:24]} 45. Nxa4 {[%clk 0:01:12]}  Kd7 {[%clk 0:00:20]} 46. Rh7+ {[%clk 0:01:10]}  Kc8 {[%clk 0:00:19]} 47. Nb6+ {[%clk 0:01:08]}  Bxb6 {[%clk 0:00:19]} 48. cxb6 {[%clk 0:01:08]}  Kb8 {[%clk 0:00:18]} 49. a4 {[%clk 0:01:07]}  Re3 {[%clk 0:00:18]} 50. Rd7 {[%clk 0:01:04]}  Rb3 {[%clk 0:00:16]} 51. Rxd4 {[%clk 0:01:02]}  Kb7 {[%clk 0:00:17]} 52. a5 {[%clk 0:01:00]}  Ka6 {[%clk 0:00:13]} 53. Rc4 {[%clk 0:00:57]}  f5 {[%clk 0:00:11]} 54. Kf2 {[%clk 0:00:56]}  f4 {[%clk 0:00:07]} 55. Rxf4 {[%clk 0:00:54]}  c5 {[%clk 0:00:08]} 56. Rf7 {[%clk 0:00:41]}  Rxb4 {[%clk 0:00:04]} 57. Ra7+ {[%clk 0:00:40]}  Kb5 {[%clk 0:00:04]} 58. b7 {[%clk 0:00:36]}  Kc6 {[%clk 0:00:04]} 59. a6 {[%clk 0:00:36]}  c4 {[%clk 0:00:04]} 60. Ra8 {[%clk 0:00:36]} 1-0


[Site "https://www.chess.com"]

[Event "Titled Tuesday Blitz May 2 Late 2023"]
[White "Bryakin, Mikhail"]
[Black "Yeritsyan, Hayk"]
[WhiteFideId "4165314"]
[BlackFideId "13307320"]
[WhiteElo "2447"]
[BlackElo "2241"]
[Result "1/2-1/2"]
[Round "03"]
[TimeControl "180+2"]
[Date "2023.05.02"]
[WhiteClock "0:00:17"]
[BlackClock "0:00:08"]

1. e4 {[%clk 0:02:20]}  c6 {[%clk 0:02:58]} 2. c4 {[%clk 0:02:07]}  d5 {[%clk 0:02:59]} 3. cxd5 {[%clk 0:02:07]}  cxd5 {[%clk 0:02:59]} 4. exd5 {[%clk 0:02:08]}  Qxd5 {[%clk 0:02:59]} 5. Nc3 {[%clk 0:02:05]}  Qd8 {[%clk 0:02:58]} 6. Nf3 {[%clk 0:02:05]}  Nc6 {[%clk 0:02:58]} 7. Bc4 {[%clk 0:01:59]}  e6 {[%clk 0:02:58]} 8. O-O {[%clk 0:01:58]}  Nf6 {[%clk 0:02:59]} 9. d4 {[%clk 0:01:59]}  Be7 {[%clk 0:02:59]} 10. Bg5 {[%clk 0:01:57]}  O-O {[%clk 0:02:59]} 11. a3 {[%clk 0:01:57]}  Nd5 {[%clk 0:02:54]} 12. Bxe7 {[%clk 0:01:43]}  Ncxe7 {[%clk 0:02:51]} 13. Qd2 {[%clk 0:01:40]}  Nxc3 {[%clk 0:02:50]} 14. bxc3 {[%clk 0:01:39]}  Bd7 {[%clk 0:02:51]} 15. Ne5 {[%clk 0:01:37]}  Bc6 {[%clk 0:02:46]} 16. Bd3 {[%clk 0:01:37]}  Rc8 {[%clk 0:02:40]} 17. h4 {[%clk 0:01:36]}  Ng6 {[%clk 0:02:37]} 18. Nxg6 {[%clk 0:01:33]}  hxg6 {[%clk 0:02:34]} 19. Qf4 {[%clk 0:01:32]}  Re8 {[%clk 0:02:21]} 20. Rad1 {[%clk 0:01:31]}  b5 {[%clk 0:02:10]} 21. f3 {[%clk 0:01:30]}  Qf6 {[%clk 0:02:09]} 22. Qxf6 {[%clk 0:01:15]}  gxf6 {[%clk 0:02:10]} 23. Kf2 {[%clk 0:01:14]}  a6 {[%clk 0:02:10]} 24. Rfe1 {[%clk 0:01:13]}  Bd5 {[%clk 0:02:10]} 25. Rc1 {[%clk 0:01:14]}  Rc7 {[%clk 0:02:07]} 26. Ke3 {[%clk 0:01:13]}  Rec8 {[%clk 0:02:07]} 27. Kd2 {[%clk 0:01:14]}  Kg7 {[%clk 0:02:08]} 28. Rh1 {[%clk 0:01:06]}  Bc4 {[%clk 0:01:59]} 29. Be4 {[%clk 0:01:06]}  a5 {[%clk 0:01:58]} 30. g4 {[%clk 0:01:05]}  f5 {[%clk 0:01:43]} 31. gxf5 {[%clk 0:00:57]}  gxf5 {[%clk 0:01:43]} 32. Rhg1+ {[%clk 0:00:56]}  Kf6 {[%clk 0:01:42]} 33. Bd3 {[%clk 0:00:56]}  Rh8 {[%clk 0:01:35]} 34. Rh1 {[%clk 0:00:54]}  Bd5 {[%clk 0:01:19]} 35. Rh3 {[%clk 0:00:54]}  Bc4 {[%clk 0:00:56]} 36. h5 {[%clk 0:00:46]}  Rh6 {[%clk 0:00:27]} 37. f4 {[%clk 0:00:40]}  Rc8 {[%clk 0:00:26]} 38. Rg1 {[%clk 0:00:39]}  Bxd3 {[%clk 0:00:23]} 39. Kxd3 {[%clk 0:00:39]}  Rch8 {[%clk 0:00:23]} 40. Rb1 {[%clk 0:00:33]}  b4 {[%clk 0:00:20]} 41. axb4 {[%clk 0:00:34]}  axb4 {[%clk 0:00:21]} 42. Rxb4 {[%clk 0:00:34]}  Rxh5 {[%clk 0:00:21]} 43. Rxh5 {[%clk 0:00:24]}  Rxh5 {[%clk 0:00:22]} 44. c4 {[%clk 0:00:17]}  Rh3+ {[%clk 0:00:22]} 45. Ke2 {[%clk 0:00:17]}  Rh2+ {[%clk 0:00:21]} 46. Ke3 {[%clk 0:00:17]}  Rh3+ {[%clk 0:00:21]} 47. Ke2 {[%clk 0:00:17]}  Rh2+ {[%clk 0:00:22]} 48. Kf3 {[%clk 0:00:17]}  Rh3+ {[%clk 0:00:20]} 49. Kf2 {[%clk 0:00:17]}  Rd3 {[%clk 0:00:20]} 50. c5 {[%clk 0:00:17]}  Ke7 {[%clk 0:00:18]} 51. Ke2 {[%clk 0:00:17]}  Rc3 {[%clk 0:00:17]} 52. Rb7+ {[%clk 0:00:17]}  Ke8 {[%clk 0:00:17]} 53. Kd2 {[%clk 0:00:17]}  Rf3 {[%clk 0:00:17]} 54. c6 {[%clk 0:00:18]}  Kd8 {[%clk 0:00:12]} 55. Rd7+ {[%clk 0:00:17]}  Kc8 {[%clk 0:00:12]} 56. Rxf7 {[%clk 0:00:16]}  Rxf4 {[%clk 0:00:12]} 57. Kd3 {[%clk 0:00:17]}  Rf1 {[%clk 0:00:12]} 58. Kc4 {[%clk 0:00:13]}  Rd1 {[%clk 0:00:12]} 59. Kb5 {[%clk 0:00:14]}  Rxd4 {[%clk 0:00:11]} 60. Kb6 {[%clk 0:00:14]}  Rb4+ {[%clk 0:00:11]} 61. Kc5 {[%clk 0:00:15]}  Rb1 {[%clk 0:00:11]} 62. Rf8+ {[%clk 0:00:14]}  Kc7 {[%clk 0:00:11]} 63. Rf7+ {[%clk 0:00:15]}  Kc8 {[%clk 0:00:11]} 64. Ra7 {[%clk 0:00:14]}  Rc1+ {[%clk 0:00:10]} 65. Kd6 {[%clk 0:00:14]}  Rd1+ {[%clk 0:00:10]} 66. Kc5 {[%clk 0:00:15]}  f4 {[%clk 0:00:08]} 67. Rf7 {[%clk 0:00:15]}  e5 {[%clk 0:00:08]} 68. Rf5 {[%clk 0:00:15]}  Rc1+ {[%clk 0:00:06]} 69. Kd6 {[%clk 0:00:15]}  Rd1+ {[%clk 0:00:07]} 70. Kc5 {[%clk 0:00:16]}  Rc1+ {[%clk 0:00:07]} 71. Kb6 {[%clk 0:00:16]}  Rb1+ {[%clk 0:00:08]} 72. Kc5 {[%clk 0:00:17]}  Rc1+ {[%clk 0:00:08]} 1/2-1/2


[Site "https://www.chess.com"]